Cogmind - Beta 14 @@@ ROGUE MODE // 2024.08.09 @ 21:59:54 Player: Pogmind Result: Destroyed by as-02181 with Assembled Maul Performance ------------- Evolutions (0) 0 Regions Visited (2) 400 Robots Destroyed (26) 130 Value Destroyed (572) 572 Prototype IDs (0) 0 Alien Tech Used (0) 0 Bonus (0) 0 TOTAL SCORE: 1102 Bonus ------- None Cogmind --------- Core Integrity 0/250 Matter 245/300 Energy 98/100 System Corruption 0% Temperature Cool (0) Movement Core (50) Location -10/Mines Parts ------- > --- POWER (1) -------- (None) > --- PROPULSION (2) --- (None) > --- UTILITY (2) ------ (None) > --- WEAPON (2) ------- (None) > --- INVENTORY (5) ---- Compact Wheel Large Matter Pod (150) Structural Scanner Seismic Detector Light Assault Rifle Peak State ------------ > --- POWER ------------ Ion Engine > --- PROPULSION ------- Light Treads Light Treads > --- UTILITY ---------- Huge Storage Unit Seismic Detector > --- WEAPON ----------- Light EM Pulse Cannon Light EM Pulse Cannon > --- INVENTORY -------- Ion Engine Light Treads Light Treads Compact Wheel Huge Storage Unit Small Battery Large Matter Pod High-capacity Matter Pod Structural Scanner Seismic Detector Authchip [Storage] Authchip [Processor] Authchip [Armor] Authchip [Weapon] Medium Laser Medium Laser Medium Laser Medium Laser Medium Laser Light EM Pulse Cannon Light EM Pulse Cannon Assault Rifle Light Assault Rifle Plasma Cutter Hammer [Rating: 13] Favorites ----------- Power Ion Engine Engine Ion Engine Propulsion Light Treads Treads Light Treads Utility Seismic Detector Device Seismic Detector Storage Huge Storage Unit Weapon Assault Rifle Energy Gun EM Pulse Gun Energy Cannon Light EM Pulse Cannon Ballistic Gun Assault Rifle Build | -11 -10 -10 ------- Run | Yrd Mat Min Slots Evolved . | . . . Power . | . . . Propulsion . | . . . Utility . | . . . Weapon . | . . . Parts Attached 24 | 8 9 7 Power 4 | 1 2 1 Engine 4 | 1 2 1 Core . | . . . Reactor . | . . . Propulsion 2 | 2 . . Treads 2 | 2 . . Leg . | . . . Wheel . | . . . Hover . | . . . Flight . | . . . Utility 4 | 2 1 1 Device 1 | 1 . . Storage 3 | 1 1 1 Processor . | . . . Hackware . | . . . Protection . | . . . Artifact . | . . . Weapon 14 | 3 6 5 Energy Gun 7 | 2 5 . Energy Cannon 4 | . . 4 Ballistic Gun 3 | 1 1 1 Ballistic Cannon . | . . . Launcher . | . . . Special Weapon . | . . . Impact Weapon . | . . . Slashing Weapon . | . . . Piercing Weapon . | . . . Special Melee Weapon . | . . . Unidentified Prototypes . | . . . Parts Lost 8 | . 4 4 Power 3 | . 2 1 Propulsion 2 | . . 2 Utility . | . . . Weapon 3 | . 2 1 Highest Loss Streak 4 | . 2 4 To Critical Strikes . | . . . Average Slot Usage (%) 99 | . 100 86 Engine 13 | . 14 12 Treads 27 | . 28 24 Device 13 | . 14 11 Storage 13 | . 14 12 Energy Gun 15 | . 15 10 Ballistic Gun 11 | . 12 10 Peak Build Rating 13 | 6 11 13 Average Rating 9 | 4 9 9 On Entrance 5 | . 6 11 Naked Turns 33 | . . 33 Heaviest Build 90 | 13 90 90 Greatest Support 40 | 40 40 40 Greatest Overweight (x) 2 | . 2 2 Average Overweight (x) 1 | . 1 1 Largest Inventory Capacity 25 | 8 25 25 Average Capacity 23 | 7 24 22 Most Carried 25 | 5 25 25 Average Carried 17 | 3 18 22 Final Capacity 25 | 8 25 5 Final Carried 25 | 5 25 5 Class Distribution -------------------- 100% | Mutant Dominant Class ---------------- Mutant | -10/Materials Mutant | -10/Mines Resources | -11 -10 -10 ----------- Run | Yrd Mat Min Matter Collected 943 | 257 673 13 Remotely . | . . . Salvage Created 773 | 12 705 56 Parts 51 | 3 46 2 Haulers Intercepted 2 | . 2 . Recyclers Shooed 1 | . 1 . Parts Field Recycled . | . . . Retrieved Matter . | . . . Parts Self-Destructed . | . . . Prevented . | . . . Kills | -11 -10 -10 ------- Run | Yrd Mat Min Combat Hostiles Destroyed 14 | . 13 1 Guns 10 | . 10 . AOE 3 | . 3 . Classes Destroyed 10 | 1 8 1 Worker 2 | . 2 . Builder 2 | . 2 . Tunneler 1 | 1 . . Hauler 2 | . 2 . Recycler 1 | . 1 . Operator 1 | . 1 . Watcher 3 | . 3 . Swarmer 3 | . 3 . Grunt 10 | . 10 . Demolisher 1 | . . 1 Best Kill Streak 7 | 1 7 1 Combat Bots Only 4 | . 4 1 Max Kills in Single Turn 5 | 1 5 1 Gunslinging . | . . . Exploded 1 | . 1 . Melee . | . . . Uniques/NPCs Destroyed . | . . . Combat | -11 -10 -10 -------- Run | Yrd Mat Min Hostile Shots Fired 58 | . 44 14 Missed 13 | . 10 3 Damage Taken 1006 | . 457 549 Core 261 | . 113 148 Absorbed by Shields . | . . . Core Remaining (%) 100 | 100 . . Volleys Fired 72 | 10 58 4 Largest 2 | 1 2 2 Hottest 112 | 20 80 112 Shots Fired 118 | 10 100 8 Gun 110 | 10 100 . Cannon 8 | . . 8 Launcher . | . . . Special . | . . . Kinetic 55 | 10 45 . Thermal 12 | . 12 . Explosive . | . . . Electromagnetic 51 | . 43 8 Robot Hit Streak 9 | 2 9 8 Robot Miss Streak 7 | 2 7 1 Penetration Max . | . . . Secondary Targets 1 | . 1 . Max Gunslinging Chain 1 | . 1 . Shots Hit Robots 73 | 4 62 7 Core Hits 39 | 2 35 2 Critical Kills 1 | 1 . . Critical Parts Destroyed . | . . . Critical Strikes 3 | 1 2 . Destroy 1 | 1 . . Corrupt 2 | . 2 . Melee Attacks . | . . . Impact . | . . . Slashing . | . . . Piercing . | . . . Sneak Attacks . | . . . Combat Hostiles . | . . . Follow-up Attacks . | . . . Damage Inflicted 1583 | 61 1390 132 Guns 941 | 61 880 . Cannons 132 | . . 132 Explosions 462 | . 462 . Melee . | . . . Ramming 48 | . 48 . Kinetic 426 | 61 365 . Thermal 574 | . 574 . Explosive . | . . . Electromagnetic 535 | . 403 132 Impact . | . . . Slashing . | . . . Piercing . | . . . Highest Corruption . | . . . Average Corruption . | . . . Corruption Purged . | . . . Corruption Blocked . | . . . Overload Shots . | . . . Overflow Damage 35 | . 35 . Projectiles . | . . . Explosions 35 | . 35 . Melee . | . . . Knockbacks 1 | . 1 . Impact 1 | . 1 . Kinetic . | . . . Secondary . | . . . Self-Inflicted Damage 68 | . 68 . Shots 2 | . 2 . Rammed 10 | 1 9 . Targets Rammed 12 | 1 11 . Kicked . | . . . Crushed 2 | . 2 . Highest Temperature 150 | . 150 133 Average Temperature 42 | . 35 81 Received Heat Transfer 183 | . 183 . Siege Activations . | . . . Robots Corrupted 1 | . . 1 Combat Hostiles 1 | . . 1 Parts Fried 3 | . 1 2 Impact Corruptions . | . . . Robots Melted . | . . . Combat Hostiles . | . . . Parts Melted 1 | . 1 . Heat Transferred 933 | . 933 . Parts Sabotaged . | . . . Parts Stolen . | . . . Parts Stripped . | . . . Power Chain Reactions 6 | . 6 . Alert | -11 -10 -10 ------- Run | Yrd Mat Min Peak Influence 179 | 5 179 33 Initial 33 | . 3 33 Average 77 | 1 82 28 Maximum Alert Level . | . . . Low Security (%) 100 | 100 100 100 Level 1 . | . . . Level 2 . | . . . Level 3 . | . . . Level 4 . | . . . Level 5 . | . . . High Security . | . . . Max Security . | . . . Squads Dispatched 5 | . 5 . Investigation 5 | . 5 . Extermination . | . . . Reinforcement . | . . . Assault . | . . . Garrison . | . . . Intercept . | . . . Searches Triggered . | . . . Construction Impeded . | . . . Haulers Reinforced . | . . . Active Scanning Responses . | . . . Cargo Convoy Interrupts . | . . . Stealth | -11 -10 -10 --------- Run | Yrd Mat Min Distress Signals 2 | . 2 . Communications Jammed . | . . . Distress Signals . | . . . Times Spotted 39 | . 29 10 Peak Tracking Total 7 | . 5 7 Tactical Retreats 3 | . 2 1 Traps | -11 -10 -10 ------- Run | Yrd Mat Min Traps Triggered 3 | . 3 . Indirectly . | . . . Trap Hack Attempts . | . . . Triggered . | . . . Disarmed . | . . . Reprogrammed . | . . . Reused . | . . . Traps Extracted . | . . . Installed . | . . . Triggered . | . . . Machines | -11 -10 -10 ---------- Run | Yrd Mat Min Machines Disabled 3 | . 3 . Max in Single Turn 1 | . 1 . Machines Repaired . | . . . Machines Dismantled . | . . . Machines Sabotaged . | . . . Overloaded Fab Kills . | . . . Hacking | -11 -10 -10 --------- Run | Yrd Mat Min Machines Accessed 9 | . 9 . Terminals 7 | . 7 . Fabricators . | . . . Repair Stations . | . . . Recycling Units 2 | . 2 . Scanalyzers . | . . . Garrison Access . | . . . Total Hacks 22 | . 22 . Successful 13 | . 13 . Failed 9 | . 9 . Catastrophic 1 | . 1 . Database Lockouts . | . . . Manual 20 | . 20 . Terminals 20 | . 20 . Fabricators . | . . . Repair Stations . | . . . Recycling Units 2 | . 2 . Scanalyzers . | . . . Garrison Access . | . . . Terminal Hacks 3 | . 3 . Record 1 | . 1 . Part Schematic 1 | . 1 . Robot Analysis 1 | . 1 . Fabricator Hacks . | . . . Repair Station Hacks . | . . . Recycling Unit Hacks . | . . . Scanalyzer . | . . . Garrison Access Hacks . | . . . Unauthorized Hacks 10 | . 10 . Terminals 8 | . 8 . Botnet 2 | . 2 . Operators 1 | . 1 . Skim 5 | . 5 . Fabricators . | . . . Repair Stations . | . . . Recycling Units 2 | . 2 . Tunnel 2 | . 2 . Scanalyzers . | . . . Garrison Access . | . . . Data Cores Recovered . | . . . Used . | . . . Hacking Detections 6 | . 6 . Full Trace Events . | . . . Feedback Events . | . . . Feedback Blocked . | . . . Robot Schematics Acquired . | . . . Robots Built . | . . . Authchips . | . . . Time . | . . . Total Robot Build Rating . | . . . Part Schematics Acquired 1 | . 1 . Parts Built . | . . . Authchips . | . . . Time . | . . . Total Part Build Rating . | . . . Parts Repaired . | . . . Time . | . . . Parts Recycled . | . . . Recycled Matter . | . . . Retrieved Matter . | . . . Retrieved Components . | . . . Parts Scanalyzed . | . . . Part Schematics Acquired . | . . . Parts Damaged . | . . . Bothacking | -11 -10 -10 ------------ Run | Yrd Mat Min Used RIF Installer . | . . . Robots Hacked . | . . . Non-combat . | . . . Combat . | . . . Robot Hacks Applied . | . . . Relay Couplers Released . | . . . Fabnet Peak Effective % . | . . . Robots Rewired . | . . . Allies Hacked . | . . . Hacks Repelled . | . . . Allies | -11 -10 -10 -------- Run | Yrd Mat Min Total Allies 3 | . . 3 Largest Group 3 | . . 3 Highest-Rated Group 40 | . . 40 Highest-Rated Ally 16 | . . 16 Total Orders . | . . . Ally Attacks 5 | . . 5 Total Damage 28 | . . 28 Kills . | . . . Allies Corrupted . | . . . Allies Melted . | . . . Intel | -11 -10 -10 ------- Run | Yrd Mat Min Robot Analysis Total 1 | . 1 . Derelict Logs Recovered 1 | . . 1 Drone Launches . | . . . Drone Recoveries . | . . . Exploration | -11 -10 -10 ------------- Run | Yrd Mat Min Turns Passed 4645 | 110 4304 231 Spaces Moved 1094 | 48 978 68 Core 17 | 4 . 13 Treads 1077 | 44 978 55 Legs . | . . . Wheels . | . . . Hover . | . . . Flight . | . . . Fastest Speed 50 | 50 160 50 Average Speed 299 | 150 309 268 Slowest Speed 320 | 160 320 320 Overloaded Moves . | . . . Propulsion Burnouts . | . . . Robots Hopped . | . . . Cave-ins Triggered . | . . . Exploration Rate (%) 41 | 4 98 21 Regions Visited 2 Branch Regions 1 Pre-discovered Areas 3 | . 3 . Known Exits Taken . | . . . Unknown Exits Taken 2 | 1 1 . Scrap Searched . | . . . Spaces Dug . | . . . Terrain Destroyed 19 | . 19 . Melee . | . . . Projectile . | . . . AOE 19 | . 19 . Terrain Rammed . | . . . Walls Destroyed . | . . . Machines Disabled . | . . . Actions | -11 -10 -10 --------- Run | Yrd Mat Min Total 2315 | 72 2137 106 Wait 1074 | 1 1046 27 Move 1093 | 48 977 68 Hop . | . . . Pick Up 33 | 3 30 . Fast Attach 8 | 8 . . Attach 7 | . 5 2 Detach 2 | 2 . . Swap 9 | . 4 5 Drop 6 | . 6 . Fire 72 | 10 58 4 Melee . | . . . Ram . | . . . Kick . | . . . Crush 11 | . 11 . Escape Stasis . | . . . Rewire . | . . . Trap . | . . . Miscellaneous . | . . . Route ------- -11/Scrapyard -10/Materials (discovered 5 exits: *Mat x3 / [*Min] / *Sub) -10/Mines (discovered 3 exits: *Mat x2 / Sub) History --------- Turn | Location | Event 5 | -11/Scrapyard | Discovered new exit (range 16) 111 | -11/Scrapyard | Entered Materials 310 | -10/Materials | Build established: Mutant 478 | -10/Materials | Discovered new exit (range 13) 616 | -10/Materials | Discovered new exit (range 10) 1526 | -10/Materials | Discovered new exit (range 4) 1801 | -10/Materials | Discovered new exit (range 11) 2713 | -10/Materials | Discovered new exit (range 8) 2893 | -10/Materials | Identified exit to Materials 2920 | -10/Materials | Learned Storage stockpile data 2936 | -10/Materials | Learned 2 Mines zone layouts 2942 | -10/Materials | Learned location of 3 exits from Materials 2959 | -10/Materials | Loaded intel: 11 trap records 2987 | -10/Materials | Learned location of Subcaves (-10) 4415 | -10/Materials | Entered Mines 4417 | -10/Mines | Identified exit to Subcaves 4428 | -10/Mines | Assisted by bots powering up and referring to "LRC-V3" 4591 | -10/Mines | Learned Materials interactive machine intel 4592 | -10/Mines | Assembled infested the area 4596 | -10/Mines | Core integrity fell below 50% 4611 | -10/Mines | Core integrity fell below 20% 4613 | -10/Mines | Released all parts (5) 4630 | -10/Mines | Lost 3 allies 4643 | -10/Mines | Lost 4 parts (1p2n1w) 4646 | -10/Mines | Destroyed by as-02181 with Assembled Maul Last Messages --------------- 04615_ Lgt. EM Pulse Cannon crushed. 04615_ as-37034 destroyed. 04615_ as-24787 destroyed. 04615_ as-11338 destroyed. 04616_ R-06 Scavenger collects Corrupted Cmb. Airjet. 04619_ The unstable cave ceiling collapses. 04619_ as-27675 destroyed. 04620_ The unstable cave ceiling collapses. 04621_ Lgt. EM Pulse Cannon crushed. 04621_ The unstable cave ceiling collapses. 04633_ Med. Laser crushed. 04633_ T-07 Excavator is excavating. 04633_ D-53 Grenadier destroyed. 04637_ The unstable cave ceiling collapses. 04640_ Plasma Cutter crushed. 04643_ as-02181 sneak attacks. 04643_ T-07 Excavator system corrupted by crushing effect. 04643_ T-07 Excavator knocked back. 04644_ T-07 Excavator system terminally corrupted. 04645_ Acquired 13 matter. Map ----- +----------------------------------------------------+ | ??????????????????????????????# #???? | | ??????????????????????????????# #???? | | #######???????????????????????# #???? | | #????#????????????????### ###?? | | " #???##????????????????# #?? | | " < #??## ????????????????# """ #?? | | " #?## ?????????????#### """ #?? | | " ### ?????????????# """ #?? | | ## ?????????????# " #?? | | ##### ?????????????#"%# < #?? | | #?## ?????????????# # #?? | | #?# ?????????????#% # #?? | | ### ??????## ### # # #?? | | ## ????# #######?? | | ???? ##????? | | ????? a # # #????? | | ???????????? ###%! %= # #????? | | ???????????* ! =[!# ##???? | | ???????????% [!*!!# #???? | | ????????????%* =!][! #????? | | ????????????= = # #![[## #????? | | ??????????? % ## #/! # #????? | | ?????????? $% = ### # # ##????? | | ??????????%! ###?????? | | ????????????#### ##??????? | | ???????????????# ###a@###???????? | | ???????????????# ##?# a##????????? | | ???????????????## ##??# #????????? | | ????????????????####???#####????????? | | ?????????????????????##?????????????? | | ????????????####?????#> ????????????? | | ????????????# ##????##?????????????? | | ???????????? #???????????????????? | | ???????????? #???????????????????? | | ???????????? ##???????????????????? | | ????????????####????????????????????? | | ????????????#???????????????????????? | | ????????????????????????????????????? | | ????????????????????????????????????? | | ????????????????????????????????????? | | ????????????????????????????????????? | | | | | | | | | | | | | | | | | | | +----------------------------------------------------+ Best States ------------- Heat Dissipation 25 Energy Generation 10 Energy Capacity 350 Matter Stores 300 Matter Capacity 300 Sight Range 16 Terrain Scan Density 10 Evasion (%) 40 Recoil Reduction 2 Authchip Count 4 Item Schematics ----------------- Signal Interpreter | -10/Materials | Hacked Robot Schematics ------------------ None Fabricated ------------ Nothing Alien Tech Used ----------------- None Achievements -------------- None Challenges ------------ None Game ------ Seed FrostPropulsionTube Manual? 0 Play Time 00:16:00 Cumulative 728.9 hours Start 2024.08.09 @ 21:16:26 End 2024.08.09 @ 21:59:54 Sessions 1 Manual Loads 0 Difficulty Rogue Special Mode None Game No. 92 Rogue 77 Adventurer 5 Explorer 10 Win Type - Total 29 Types 6/7/7/0/3/1/4/0/1 Lore% 68 Gallery% 90 Achievement% 86 Wizard Run 0 Options --------- Layout 0 ASCII 0 Keyboard 1 Movement Numpad Keybinds 0 Fullscreen 1 Font 24/Smallcaps Map View 130x56 Zoom Use 0% Tactical HUD 1 Map Filters NONE Filters NONE Steam 1 RUN: 39c1bf1b-4e3f-4d96-bab1-a20980ea5cff